[Event "Titled Tuesday Blitz March 14 Late 2023"]
[White "Skytte, Rasmus"]
[Black "Aldokhin, Ivan"]
[WhiteFideId "1404210"]
[BlackFideId "24115720"]
[WhiteElo "2418"]
[BlackElo "2322"]
[Result "1-0"]
[Round "02"]
[TimeControl "180+1"]
[Date "2023.03.14"]
[WhiteClock "0:00:21"]
[BlackClock "0:00:03"]

1. e4 {[%clk 0:03:00]}  c5 {[%clk 0:03:00]} 2. c3 {[%clk 0:02:56]}  d5 {[%clk 0:03:00]} 3. exd5 {[%clk 0:02:54]}  Qxd5 {[%clk 0:03:00]} 4. d4 {[%clk 0:02:54]}  Nf6 {[%clk 0:03:00]} 5. Nf3 {[%clk 0:02:54]}  e6 {[%clk 0:02:59]} 6. Bd3 {[%clk 0:02:51]}  cxd4 {[%clk 0:02:55]} 7. cxd4 {[%clk 0:02:50]}  Nc6 {[%clk 0:02:55]} 8. O-O {[%clk 0:02:49]}  Be7 {[%clk 0:02:48]} 9. Nc3 {[%clk 0:02:48]}  Qd6 {[%clk 0:02:48]} 10. Bg5 {[%clk 0:02:40]}  O-O {[%clk 0:02:45]} 11. Rc1 {[%clk 0:02:36]}  Rd8 {[%clk 0:02:43]} 12. Nb5 {[%clk 0:02:36]}  Qd7 {[%clk 0:02:25]} 13. Ne5 {[%clk 0:02:32]}  Nxe5 {[%clk 0:02:16]} 14. Rc7 {[%clk 0:02:29]}  Nxd3 {[%clk 0:01:08]} 15. Rxd7 {[%clk 0:02:22]}  Bxd7 {[%clk 0:01:09]} 16. Qxd3 {[%clk 0:02:18]}  Bc6 {[%clk 0:01:06]} 17. Nc3 {[%clk 0:02:12]}  Nd5 {[%clk 0:00:58]} 18. Bxe7 {[%clk 0:02:01]}  Nxe7 {[%clk 0:00:58]} 19. Rd1 {[%clk 0:01:57]}  Nf5 {[%clk 0:00:54]} 20. Qc4 {[%clk 0:01:52]}  Rac8 {[%clk 0:00:51]} 21. Qb4 {[%clk 0:01:49]}  Rd7 {[%clk 0:00:45]} 22. f3 {[%clk 0:01:26]}  Rcd8 {[%clk 0:00:45]} 23. Ne2 {[%clk 0:01:13]}  e5 {[%clk 0:00:38]} 24. Qa5 {[%clk 0:01:11]}  Nxd4 {[%clk 0:00:32]} 25. Nxd4 {[%clk 0:01:08]}  exd4 {[%clk 0:00:32]} 26. Qxa7 {[%clk 0:01:06]}  d3 {[%clk 0:00:31]} 27. Rd2 {[%clk 0:01:06]}  h5 {[%clk 0:00:30]} 28. Kf2 {[%clk 0:01:05]}  g6 {[%clk 0:00:28]} 29. Qb6 {[%clk 0:01:03]}  Rd5 {[%clk 0:00:28]} 30. b3 {[%clk 0:01:00]}  Re8 {[%clk 0:00:25]} 31. h4 {[%clk 0:00:56]}  Bb5 {[%clk 0:00:21]} 32. Qa5 {[%clk 0:00:51]}  Ree5 {[%clk 0:00:09]} 33. Qc3 {[%clk 0:00:46]}  Re2+ {[%clk 0:00:06]} 34. Kg3 {[%clk 0:00:44]}  Rxd2 {[%clk 0:00:05]} 35. Qxd2 {[%clk 0:00:44]}  Bc6 {[%clk 0:00:05]} 36. a4 {[%clk 0:00:41]}  Kf8 {[%clk 0:00:05]} 37. Kf2 {[%clk 0:00:36]}  Ke7 {[%clk 0:00:05]} 38. Ke1 {[%clk 0:00:31]}  Ke6 {[%clk 0:00:05]} 39. Kd1 {[%clk 0:00:31]}  Re5 {[%clk 0:00:06]} 40. Qf4 {[%clk 0:00:27]}  Rd5 {[%clk 0:00:05]} 41. Kd2 {[%clk 0:00:26]}  Ke7 {[%clk 0:00:05]} 42. Qe3+ {[%clk 0:00:25]}  Kd7 {[%clk 0:00:05]} 43. Qa7 {[%clk 0:00:24]}  Ke6 {[%clk 0:00:05]} 44. b4 {[%clk 0:00:24]}  Rd7 {[%clk 0:00:03]} 45. b5 {[%clk 0:00:23]}  Bd5 {[%clk 0:00:04]} 46. Kxd3 {[%clk 0:00:21]}  Bxf3+ {[%clk 0:00:04]} 47. Kc3 {[%clk 0:00:19]}  Bxg2 {[%clk 0:00:04]} 48. Qe3+ {[%clk 0:00:19]}  Kd5 {[%clk 0:00:03]} 49. Qd2+ {[%clk 0:00:15]}  Ke6 {[%clk 0:00:03]} 50. Qxg2 {[%clk 0:00:15]}  Rc7+ {[%clk 0:00:03]} 51. Kb4 {[%clk 0:00:15]}  Rd7 {[%clk 0:00:04]} 52. Qe2+ {[%clk 0:00:15]}  Kd6 {[%clk 0:00:04]} 53. Qd3+ {[%clk 0:00:15]}  Ke6 {[%clk 0:00:04]} 54. Qc4+ {[%clk 0:00:15]}  Kd6 {[%clk 0:00:04]} 55. Qc3 {[%clk 0:00:15]}  f5 {[%clk 0:00:04]} 56. a5 {[%clk 0:00:16]}  f4 {[%clk 0:00:04]} 57. Qc5+ {[%clk 0:00:16]}  Ke6 {[%clk 0:00:04]} 58. Qc4+ {[%clk 0:00:16]}  Kf5 {[%clk 0:00:04]} 59. a6 {[%clk 0:00:17]}  bxa6 {[%clk 0:00:04]} 60. bxa6 {[%clk 0:00:17]}  Kg4 {[%clk 0:00:04]} 61. Qe6+ {[%clk 0:00:16]}  Kg3 {[%clk 0:00:04]} 62. Qxd7 {[%clk 0:00:17]}  f3 {[%clk 0:00:05]} 63. Qf7 {[%clk 0:00:18]}  f2 {[%clk 0:00:05]} 64. Qxg6+ {[%clk 0:00:19]}  Kh2 {[%clk 0:00:05]} 65. Qf6 {[%clk 0:00:19]}  Kg3 {[%clk 0:00:03]} 66. a7 {[%clk 0:00:20]}  Kh2 {[%clk 0:00:02]} 67. Qxf2+ {[%clk 0:00:19]}  Kh1 {[%clk 0:00:03]} 68. Qf5 {[%clk 0:00:20]}  Kh2 {[%clk 0:00:03]} 69. Qxh5 {[%clk 0:00:20]}  Kh1 {[%clk 0:00:03]} 70. Qc5 {[%clk 0:00:21]} 1-0


[Site "https://www.chess.com"]

[Event "Titled Tuesday Blitz March 14 Late 2023"]
[White "Smith, Garrett L"]
[Black "Rostomyan, Mikayel"]
[WhiteFideId "2024829"]
[BlackFideId "13313754"]
[WhiteElo "2294"]
[BlackElo "2009"]
[Result "0-1"]
[Round "02"]
[TimeControl "180+1"]
[Date "2023.03.14"]
[WhiteClock "0:00:16"]
[BlackClock "0:00:16"]

1. e4 {[%clk 0:03:00]}  c5 {[%clk 0:02:57]} 2. a3 {[%clk 0:03:00]}  Nf6 {[%clk 0:02:55]} 3. e5 {[%clk 0:02:57]}  Nd5 {[%clk 0:02:56]} 4. Bc4 {[%clk 0:02:57]}  Nb6 {[%clk 0:02:54]} 5. Ba2 {[%clk 0:02:58]}  e6 {[%clk 0:02:53]} 6. Nf3 {[%clk 0:02:58]}  Nc6 {[%clk 0:02:52]} 7. O-O {[%clk 0:02:57]}  d5 {[%clk 0:02:52]} 8. exd6 {[%clk 0:02:54]}  Bxd6 {[%clk 0:02:53]} 9. Nc3 {[%clk 0:02:54]}  O-O {[%clk 0:02:52]} 10. Ne4 {[%clk 0:02:53]}  Be7 {[%clk 0:02:52]} 11. d3 {[%clk 0:02:54]}  Nd5 {[%clk 0:02:52]} 12. Re1 {[%clk 0:02:50]}  b6 {[%clk 0:02:51]} 13. c3 {[%clk 0:02:41]}  Bb7 {[%clk 0:02:50]} 14. Qc2 {[%clk 0:02:38]}  Nf6 {[%clk 0:02:41]} 15. Bf4 {[%clk 0:02:34]}  Qd7 {[%clk 0:02:07]} 16. Rad1 {[%clk 0:02:31]}  Rad8 {[%clk 0:02:03]} 17. b4 {[%clk 0:02:06]}  cxb4 {[%clk 0:01:58]} 18. axb4 {[%clk 0:02:07]}  Nxe4 {[%clk 0:01:55]} 19. dxe4 {[%clk 0:02:05]}  Qc8 {[%clk 0:01:54]} 20. Qb2 {[%clk 0:01:51]}  Rxd1 {[%clk 0:01:35]} 21. Rxd1 {[%clk 0:01:51]}  Rd8 {[%clk 0:01:35]} 22. Rxd8+ {[%clk 0:01:49]}  Nxd8 {[%clk 0:01:32]} 23. Bb1 {[%clk 0:01:39]}  Nc6 {[%clk 0:01:24]} 24. b5 {[%clk 0:01:29]}  Na5 {[%clk 0:01:24]} 25. Nd4 {[%clk 0:01:19]}  Qc5 {[%clk 0:01:07]} 26. e5 {[%clk 0:01:15]}  Qd5 {[%clk 0:00:56]} 27. f3 {[%clk 0:01:15]}  Qc4 {[%clk 0:00:52]} 28. Qc2 {[%clk 0:01:12]}  g6 {[%clk 0:00:50]} 29. Ba2 {[%clk 0:01:08]}  Qc7 {[%clk 0:00:46]} 30. h3 {[%clk 0:01:03]}  Bc5 {[%clk 0:00:46]} 31. Qd3 {[%clk 0:01:01]}  Qd7 {[%clk 0:00:46]} 32. Be3 {[%clk 0:00:53]}  Bd5 {[%clk 0:00:43]} 33. Bxd5 {[%clk 0:00:51]}  Qxd5 {[%clk 0:00:44]} 34. f4 {[%clk 0:00:38]}  h5 {[%clk 0:00:42]} 35. Kh2 {[%clk 0:00:38]}  Nc4 {[%clk 0:00:38]} 36. Bf2 {[%clk 0:00:34]}  Bxd4 {[%clk 0:00:35]} 37. Bxd4 {[%clk 0:00:31]}  Qxb5 {[%clk 0:00:33]} 38. Qg3 {[%clk 0:00:28]}  Qd5 {[%clk 0:00:31]} 39. Qh4 {[%clk 0:00:28]}  a5 {[%clk 0:00:23]} 40. Qe7 {[%clk 0:00:28]}  a4 {[%clk 0:00:23]} 41. Qb4 {[%clk 0:00:27]}  a3 {[%clk 0:00:21]} 42. Bxb6 {[%clk 0:00:16]}  a2 {[%clk 0:00:16]} 0-1


[Site "https://www.chess.com"]

[Event "Titled Tuesday Blitz March 14 Late 2023"]
[White "Sochacki, Christophe"]
[Black "Makhnev, Denis"]
[WhiteFideId "662569"]
[BlackFideId "13707647"]
[WhiteElo "2474"]
[BlackElo "2525"]
[Result "0-1"]
[Round "02"]
[TimeControl "180+1"]
[Date "2023.03.14"]
[WhiteClock "0:00:03"]
[BlackClock "0:00:36"]

1. b3 {[%clk 0:03:00]}  e5 {[%clk 0:02:59]} 2. Bb2 {[%clk 0:03:00]}  Nc6 {[%clk 0:03:00]} 3. e3 {[%clk 0:03:00]}  Nf6 {[%clk 0:03:01]} 4. Bb5 {[%clk 0:03:00]}  Bd6 {[%clk 0:03:01]} 5. Na3 {[%clk 0:03:00]}  Na5 {[%clk 0:03:01]} 6. Be2 {[%clk 0:03:00]}  e4 {[%clk 0:02:59]} 7. Nb5 {[%clk 0:02:30]}  Be7 {[%clk 0:02:57]} 8. d3 {[%clk 0:02:25]}  exd3 {[%clk 0:02:45]} 9. Bxd3 {[%clk 0:02:24]}  O-O {[%clk 0:02:43]} 10. Nf3 {[%clk 0:02:22]}  Nc6 {[%clk 0:02:38]} 11. O-O {[%clk 0:02:21]}  d6 {[%clk 0:02:38]} 12. h3 {[%clk 0:02:14]}  a6 {[%clk 0:02:36]} 13. Nbd4 {[%clk 0:02:12]}  Ne5 {[%clk 0:02:29]} 14. Nf5 {[%clk 0:01:55]}  Nxd3 {[%clk 0:02:26]} 15. Qxd3 {[%clk 0:01:56]}  Bxf5 {[%clk 0:02:23]} 16. Qxf5 {[%clk 0:01:56]}  Re8 {[%clk 0:02:23]} 17. c4 {[%clk 0:01:47]}  Nd7 {[%clk 0:02:19]} 18. Rad1 {[%clk 0:01:45]}  g6 {[%clk 0:02:06]} 19. Qf4 {[%clk 0:01:42]}  Bf6 {[%clk 0:02:05]} 20. Bd4 {[%clk 0:01:26]}  Qe7 {[%clk 0:02:02]} 21. Rfe1 {[%clk 0:01:22]}  a5 {[%clk 0:02:01]} 22. Bxf6 {[%clk 0:01:19]}  Qxf6 {[%clk 0:01:59]} 23. Qxf6 {[%clk 0:01:15]}  Nxf6 {[%clk 0:02:00]} 24. Nd4 {[%clk 0:01:15]}  h5 {[%clk 0:01:55]} 25. Nb5 {[%clk 0:01:15]}  Re7 {[%clk 0:01:56]} 26. Rd4 {[%clk 0:01:13]}  Ne4 {[%clk 0:01:53]} 27. Red1 {[%clk 0:01:09]}  Nc5 {[%clk 0:01:52]} 28. Kf1 {[%clk 0:01:06]}  Kg7 {[%clk 0:01:51]} 29. Ke2 {[%clk 0:01:05]}  f6 {[%clk 0:01:34]} 30. Nc3 {[%clk 0:01:02]}  Rh8 {[%clk 0:01:17]} 31. Nd5 {[%clk 0:00:56]}  Rf7 {[%clk 0:01:18]} 32. Rb1 {[%clk 0:00:54]}  h4 {[%clk 0:01:14]} 33. a3 {[%clk 0:00:53]}  f5 {[%clk 0:01:13]} 34. b4 {[%clk 0:00:52]}  axb4 {[%clk 0:01:13]} 35. axb4 {[%clk 0:00:53]}  Ne6 {[%clk 0:01:13]} 36. Rd2 {[%clk 0:00:50]}  Ra8 {[%clk 0:01:13]} 37. Rbb2 {[%clk 0:00:35]}  Ra1 {[%clk 0:00:58]} 38. Ra2 {[%clk 0:00:35]}  Rg1 {[%clk 0:00:58]} 39. Ra7 {[%clk 0:00:29]}  b6 {[%clk 0:00:57]} 40. Kf3 {[%clk 0:00:18]}  Ng5+ {[%clk 0:00:56]} 41. Ke2 {[%clk 0:00:14]}  Ne4 {[%clk 0:00:56]} 42. Rc2 {[%clk 0:00:11]}  Rxg2 {[%clk 0:00:57]} 43. Nxc7 {[%clk 0:00:10]}  Rxf2+ {[%clk 0:00:52]} 44. Kd3 {[%clk 0:00:11]}  Rxc2 {[%clk 0:00:46]} 45. Kxc2 {[%clk 0:00:12]}  Kh6 {[%clk 0:00:43]} 46. Nb5 {[%clk 0:00:12]}  Rxa7 {[%clk 0:00:43]} 47. Nxa7 {[%clk 0:00:13]}  g5 {[%clk 0:00:43]} 48. Nc6 {[%clk 0:00:11]}  g4 {[%clk 0:00:43]} 49. Nd4 {[%clk 0:00:11]}  gxh3 {[%clk 0:00:42]} 50. Nf3 {[%clk 0:00:08]}  Kh5 {[%clk 0:00:42]} 51. Kd3 {[%clk 0:00:07]}  Kg4 {[%clk 0:00:42]} 52. Ke2 {[%clk 0:00:07]}  Kg3 {[%clk 0:00:40]} 53. Nd4 {[%clk 0:00:03]}  h2 {[%clk 0:00:36]} 0-1


[Site "https://www.chess.com"]

[Event "Titled Tuesday Blitz March 14 Late 2023"]
[White "Sokolin, Leonid"]
[Black "Kraus, Tomas"]
[WhiteFideId "2009161"]
[BlackFideId "331708"]
[WhiteElo "2394"]
[BlackElo "2389"]
[Result "0-1"]
[Round "02"]
[TimeControl "180+1"]
[Date "2023.03.14"]
[WhiteClock "0:00:55"]
[BlackClock "0:00:09"]

1. e4 {[%clk 0:03:00]}  e6 {[%clk 0:02:59]} 2. d4 {[%clk 0:02:59]}  d5 {[%clk 0:03:00]} 3. Nc3 {[%clk 0:02:58]}  Bb4 {[%clk 0:02:59]} 4. e5 {[%clk 0:02:57]}  c5 {[%clk 0:02:59]} 5. Bd2 {[%clk 0:02:52]}  Ne7 {[%clk 0:02:54]} 6. a3 {[%clk 0:02:42]}  Ba5 {[%clk 0:02:23]} 7. Nb5 {[%clk 0:02:39]}  Bxd2+ {[%clk 0:02:20]} 8. Qxd2 {[%clk 0:02:39]}  O-O {[%clk 0:02:19]} 9. dxc5 {[%clk 0:02:36]}  Nbc6 {[%clk 0:02:13]} 10. f4 {[%clk 0:02:33]}  f6 {[%clk 0:02:05]} 11. exf6 {[%clk 0:02:33]}  Rxf6 {[%clk 0:02:05]} 12. O-O-O {[%clk 0:02:32]}  a6 {[%clk 0:01:50]} 13. Nd6 {[%clk 0:02:23]}  Qc7 {[%clk 0:01:50]} 14. g4 {[%clk 0:02:05]}  b6 {[%clk 0:01:47]} 15. g5 {[%clk 0:02:02]}  Rf8 {[%clk 0:01:47]} 16. Bh3 {[%clk 0:02:00]}  bxc5 {[%clk 0:01:36]} 17. Nxc8 {[%clk 0:01:59]}  Qxc8 {[%clk 0:01:36]} 18. Qe3 {[%clk 0:01:57]}  Nf5 {[%clk 0:01:35]} 19. Qxc5 {[%clk 0:01:57]}  Qb7 {[%clk 0:01:25]} 20. Rd3 {[%clk 0:01:45]}  Rac8 {[%clk 0:01:23]} 21. Qf2 {[%clk 0:01:26]}  Na5 {[%clk 0:01:15]} 22. Nf3 {[%clk 0:01:23]}  Nc4 {[%clk 0:01:14]} 23. Rb3 {[%clk 0:01:23]}  Qc7 {[%clk 0:01:11]} 24. Nd4 {[%clk 0:01:20]}  Nxd4 {[%clk 0:00:38]} 25. Qxd4 {[%clk 0:01:19]}  Rce8 {[%clk 0:00:38]} 26. Rf1 {[%clk 0:01:15]}  a5 {[%clk 0:00:23]} 27. Rbf3 {[%clk 0:01:14]}  g6 {[%clk 0:00:18]} 28. Re1 {[%clk 0:01:14]}  Qd6 {[%clk 0:00:16]} 29. Qd3 {[%clk 0:01:06]}  Rf7 {[%clk 0:00:12]} 30. a4 {[%clk 0:01:04]}  Rb7 {[%clk 0:00:11]} 31. b3 {[%clk 0:01:04]}  Qa3+ {[%clk 0:00:10]} 32. Kd1 {[%clk 0:01:01]}  Nb2+ {[%clk 0:00:10]} 33. Kd2 {[%clk 0:01:01]}  Nxd3 {[%clk 0:00:11]} 34. Rxd3 {[%clk 0:01:01]}  Qb4+ {[%clk 0:00:11]} 35. Kd1 {[%clk 0:01:01]}  Rc7 {[%clk 0:00:09]} 36. Bxe6+ {[%clk 0:00:59]}  Rxe6 {[%clk 0:00:10]} 37. Rxe6 {[%clk 0:00:58]}  Qxf4 {[%clk 0:00:10]} 38. Rxd5 {[%clk 0:00:55]}  Qf3+ {[%clk 0:00:09]} 0-1


[Site "https://www.chess.com"]

[Event "Titled Tuesday Blitz March 14 Late 2023"]
[White "Subelj, Jan"]
[Black "Vachier-Lagrave, Maxime"]
[WhiteFideId "14618583"]
[BlackFideId "623539"]
[WhiteElo "2474"]
[BlackElo "2740"]
[Result "0-1"]
[Round "02"]
[TimeControl "180+1"]
[Date "2023.03.14"]
[WhiteClock "0:02:08"]
[BlackClock "0:02:11"]

1. d4 {[%clk 0:03:00]}  Nf6 {[%clk 0:02:59]} 2. Nf3 {[%clk 0:02:59]}  g6 {[%clk 0:02:59]} 3. g3 {[%clk 0:02:56]}  Bg7 {[%clk 0:02:57]} 4. Bg2 {[%clk 0:02:56]}  d5 {[%clk 0:02:54]} 5. O-O {[%clk 0:02:55]}  O-O {[%clk 0:02:53]} 6. c4 {[%clk 0:02:54]}  c6 {[%clk 0:02:52]} 7. cxd5 {[%clk 0:02:50]}  cxd5 {[%clk 0:02:52]} 8. Nc3 {[%clk 0:02:50]}  Nc6 {[%clk 0:02:52]} 9. Ne5 {[%clk 0:02:49]}  Bf5 {[%clk 0:02:52]} 10. Nxc6 {[%clk 0:02:46]}  bxc6 {[%clk 0:02:52]} 11. Bf4 {[%clk 0:02:45]}  Nh5 {[%clk 0:02:42]} 12. Be3 {[%clk 0:02:45]}  c5 {[%clk 0:02:35]} 13. Bxd5 {[%clk 0:02:38]}  cxd4 {[%clk 0:02:19]} 14. Bxa8 {[%clk 0:02:34]}  Qxa8 {[%clk 0:02:17]} 15. Bxd4 {[%clk 0:02:33]}  Bh3 {[%clk 0:02:11]} 16. e4 {[%clk 0:02:10]}  Rd8 {[%clk 0:02:11]} 17. Nd5 {[%clk 0:02:08]}  Rxd5 {[%clk 0:02:11]} 0-1


[Site "https://www.chess.com"]

[Event "Titled Tuesday Blitz March 14 Late 2023"]
[White "Svane, Frederik"]
[Black "Domingo Nunez, Ruben"]
[WhiteFideId "12923044"]
[BlackFideId "22245570"]
[WhiteElo "2502"]
[BlackElo "2404"]
[Result "1-0"]
[Round "02"]
[TimeControl "180+1"]
[Date "2023.03.14"]
[WhiteClock "0:01:57"]
[BlackClock "0:01:16"]

1. c4 {[%clk 0:03:00]}  g6 {[%clk 0:02:53]} 2. Nf3 {[%clk 0:03:00]}  Bg7 {[%clk 0:02:54]} 3. g3 {[%clk 0:03:00]}  d6 {[%clk 0:02:54]} 4. Bg2 {[%clk 0:03:00]}  Nf6 {[%clk 0:02:55]} 5. O-O {[%clk 0:03:01]}  O-O {[%clk 0:02:56]} 6. d4 {[%clk 0:03:01]}  Nbd7 {[%clk 0:02:57]} 7. Nc3 {[%clk 0:03:00]}  c5 {[%clk 0:02:58]} 8. b3 {[%clk 0:02:56]}  Rb8 {[%clk 0:02:58]} 9. Bb2 {[%clk 0:02:55]}  a6 {[%clk 0:02:58]} 10. a4 {[%clk 0:02:55]}  b6 {[%clk 0:02:59]} 11. Re1 {[%clk 0:02:53]}  Ne8 {[%clk 0:02:59]} 12. e4 {[%clk 0:02:53]}  Nc7 {[%clk 0:03:00]} 13. Nd5 {[%clk 0:02:48]}  b5 {[%clk 0:02:57]} 14. axb5 {[%clk 0:02:48]}  axb5 {[%clk 0:02:58]} 15. cxb5 {[%clk 0:02:45]}  Nxb5 {[%clk 0:02:37]} 16. Re2 {[%clk 0:02:44]}  e6 {[%clk 0:02:35]} 17. Ne3 {[%clk 0:02:42]}  cxd4 {[%clk 0:02:31]} 18. Nxd4 {[%clk 0:02:43]}  Nxd4 {[%clk 0:02:32]} 19. Bxd4 {[%clk 0:02:44]}  Ne5 {[%clk 0:02:24]} 20. Rc1 {[%clk 0:02:36]}  Ba6 {[%clk 0:02:23]} 21. Rd2 {[%clk 0:02:36]}  Qa5 {[%clk 0:01:51]} 22. Ra1 {[%clk 0:02:25]}  Qb5 {[%clk 0:01:41]} 23. Bxe5 {[%clk 0:02:16]}  Bxe5 {[%clk 0:01:32]} 24. Bf1 {[%clk 0:02:16]}  Qb4 {[%clk 0:01:24]} 25. Rxa6 {[%clk 0:02:12]}  Qxe4 {[%clk 0:01:25]} 26. Nc4 {[%clk 0:02:12]}  Rfc8 {[%clk 0:01:22]} 27. Nxd6 {[%clk 0:02:10]}  Bxd6 {[%clk 0:01:23]} 28. Raxd6 {[%clk 0:02:11]}  Kg7 {[%clk 0:01:22]} 29. Qa1+ {[%clk 0:02:10]}  Kg8 {[%clk 0:01:20]} 30. Qf6 {[%clk 0:02:07]}  h5 {[%clk 0:01:20]} 31. h4 {[%clk 0:01:58]}  Qf5 {[%clk 0:01:14]} 32. Rd8+ {[%clk 0:01:54]}  Rxd8 {[%clk 0:01:14]} 33. Rxd8+ {[%clk 0:01:55]}  Rxd8 {[%clk 0:01:14]} 34. Qxd8+ {[%clk 0:01:56]}  Kg7 {[%clk 0:01:15]} 35. Qd4+ {[%clk 0:01:57]}  Kh7 {[%clk 0:01:16]} 36. b4 {[%clk 0:01:57]}  Qe4 {[%clk 0:01:16]} 37. Qxe4 {[%clk 0:01:57]} 1-0


[Site "https://www.chess.com"]

[Event "Titled Tuesday Blitz March 14 Late 2023"]
[White "Tarnowska, Aleksandra"]
[Black "Buchenau, Frank"]
[WhiteFideId "1180967"]
[BlackFideId "4604350"]
[WhiteElo "1776"]
[BlackElo "2157"]
[Result "0-1"]
[Round "02"]
[TimeControl "180+1"]
[Date "2023.03.14"]
[WhiteClock "0:00:01"]
[BlackClock "0:01:27"]

1. e4 {[%clk 0:02:56]}  e6 {[%clk 0:02:59]} 2. d4 {[%clk 0:02:55]}  d5 {[%clk 0:02:59]} 3. Nd2 {[%clk 0:02:52]}  Nc6 {[%clk 0:02:57]} 4. c3 {[%clk 0:02:51]}  e5 {[%clk 0:02:55]} 5. exd5 {[%clk 0:02:45]}  Qxd5 {[%clk 0:02:55]} 6. Ngf3 {[%clk 0:02:30]}  exd4 {[%clk 0:02:55]} 7. Bc4 {[%clk 0:02:24]}  Qf5 {[%clk 0:02:55]} 8. O-O {[%clk 0:01:59]}  Be6 {[%clk 0:02:54]} 9. Bxe6 {[%clk 0:01:47]}  fxe6 {[%clk 0:02:55]} 10. Nxd4 {[%clk 0:01:41]}  Nxd4 {[%clk 0:02:55]} 11. cxd4 {[%clk 0:01:42]}  O-O-O {[%clk 0:02:52]} 12. Qa4 {[%clk 0:01:35]}  Kb8 {[%clk 0:02:47]} 13. Nf3 {[%clk 0:01:09]}  Nf6 {[%clk 0:02:44]} 14. b4 {[%clk 0:00:56]}  Bd6 {[%clk 0:02:30]} 15. b5 {[%clk 0:00:35]}  Nd5 {[%clk 0:02:29]} 16. Bd2 {[%clk 0:00:20]}  g5 {[%clk 0:02:24]} 17. Rfe1 {[%clk 0:00:18]}  Rdf8 {[%clk 0:02:16]} 18. Re2 {[%clk 0:00:17]}  g4 {[%clk 0:02:13]} 19. Ne5 {[%clk 0:00:17]}  Bxe5 {[%clk 0:02:06]} 20. dxe5 {[%clk 0:00:18]}  h5 {[%clk 0:01:50]} 21. Rc1 {[%clk 0:00:17]}  h4 {[%clk 0:01:48]} 22. b6 {[%clk 0:00:11]}  axb6 {[%clk 0:01:40]} 23. Bb4 {[%clk 0:00:05]}  Qf4 {[%clk 0:01:36]} 24. Rb1 {[%clk 0:00:02]}  h3 {[%clk 0:01:33]} 25. Qb3 {[%clk 0:00:01]}  hxg2 {[%clk 0:01:27]} 26. Bxf8 {[%clk 0:00:01]}  Qxh2# {[%clk 0:01:27]} 0-1


[Site "https://www.chess.com"]

[Event "Titled Tuesday Blitz March 14 Late 2023"]
[White "Tica, Sven"]
[Black "Shubin, Kirill"]
[WhiteFideId "14526948"]
[BlackFideId "34119962"]
[WhiteElo "2348"]
[BlackElo "2407"]
[Result "0-1"]
[Round "02"]
[TimeControl "180+1"]
[Date "2023.03.14"]
[WhiteClock "0:01:00"]
[BlackClock "0:01:01"]

1. e4 {[%clk 0:03:00]}  e6 {[%clk 0:02:59]} 2. b3 {[%clk 0:03:00]}  c5 {[%clk 0:02:58]} 3. Bb2 {[%clk 0:03:00]}  Nc6 {[%clk 0:02:58]} 4. Nf3 {[%clk 0:02:54]}  d6 {[%clk 0:02:57]} 5. c4 {[%clk 0:02:54]}  Nf6 {[%clk 0:02:57]} 6. Nc3 {[%clk 0:02:53]}  g6 {[%clk 0:02:57]} 7. d4 {[%clk 0:02:53]}  cxd4 {[%clk 0:02:56]} 8. Nxd4 {[%clk 0:02:54]}  a6 {[%clk 0:02:48]} 9. Be2 {[%clk 0:02:44]}  Bg7 {[%clk 0:02:47]} 10. Nxc6 {[%clk 0:02:29]}  bxc6 {[%clk 0:02:48]} 11. e5 {[%clk 0:02:30]}  dxe5 {[%clk 0:02:44]} 12. Qxd8+ {[%clk 0:02:31]}  Kxd8 {[%clk 0:02:45]} 13. Na4 {[%clk 0:02:27]}  Nd7 {[%clk 0:02:45]} 14. O-O-O {[%clk 0:02:23]}  Kc7 {[%clk 0:02:44]} 15. Bc3 {[%clk 0:02:23]}  a5 {[%clk 0:02:43]} 16. Bf3 {[%clk 0:02:19]}  Rg8 {[%clk 0:02:36]} 17. Rhe1 {[%clk 0:02:13]}  f5 {[%clk 0:02:32]} 18. Be2 {[%clk 0:01:58]}  e4 {[%clk 0:02:13]} 19. Bxg7 {[%clk 0:01:56]}  Rxg7 {[%clk 0:02:14]} 20. c5 {[%clk 0:01:57]}  Ba6 {[%clk 0:02:07]} 21. Bxa6 {[%clk 0:01:48]}  Rxa6 {[%clk 0:02:08]} 22. Rd6 {[%clk 0:01:49]}  Re7 {[%clk 0:01:51]} 23. f3 {[%clk 0:01:38]}  exf3 {[%clk 0:01:50]} 24. gxf3 {[%clk 0:01:38]}  e5 {[%clk 0:01:51]} 25. Kc2 {[%clk 0:01:33]}  Ra8 {[%clk 0:01:43]} 26. Red1 {[%clk 0:01:32]}  Rae8 {[%clk 0:01:40]} 27. a3 {[%clk 0:01:26]}  e4 {[%clk 0:01:39]} 28. fxe4 {[%clk 0:01:26]}  fxe4 {[%clk 0:01:39]} 29. b4 {[%clk 0:01:26]}  axb4 {[%clk 0:01:39]} 30. axb4 {[%clk 0:01:27]}  e3 {[%clk 0:01:39]} 31. Nc3 {[%clk 0:01:28]}  Ne5 {[%clk 0:01:27]} 32. Re1 {[%clk 0:01:22]}  Nf3 {[%clk 0:01:17]} 33. Re2 {[%clk 0:01:15]}  Re5 {[%clk 0:01:10]} 34. Rf6 {[%clk 0:01:03]}  Nd4+ {[%clk 0:01:03]} 35. Kd3 {[%clk 0:01:01]}  Nxe2 {[%clk 0:01:02]} 36. Kxe2 {[%clk 0:01:00]}  Rd8 {[%clk 0:01:01]} 0-1


[Site "https://www.chess.com"]